fUSD/lending_fUSD_20260601
["ID","MTS","AMOUNT","RATE_DAILY","PERIOD"]
[423706325,1780319447000,-386.13947623,0.00029737,2]
[423706326,1780319447000,-403.58311301,0.00029737,2]
[423706327,1780319447000,-335.46821471,0.00029737,2]
[423706323,1780319447000,-333.93471767,0.00029737,2]
[423706324,1780319447000,-410.95041364,0.00029737,2]
[423706322,1780319447000,-336.15773417,0.00029737,2]
[423706329,1780319447000,-354.8756709,0.00029737,2]
[423706339,1780319447000,-1357.0,0.00029846,2]
[423706340,1780319447000,-929.0,0.00029846,2]
[423706331,1780319447000,-315.69163018,0.00029737,2]
[423706328,1780319447000,-320.0685226,0.00029737,2]
[423706330,1780319447000,-365.02095654,0.00029737,2]
[423706350,1780319447000,-200.0,0.0003,2]
[423706332,1780319447000,-358.1118084,0.00029737,2]
[423706335,1780319447000,-522.31,0.00029766,7]
[423706338,1780319447000,-3551.0,0.00029846,2]
[423706336,1780319447000,-1000.01,0.000298,30]
[423706337,1780319447000,-649.0,0.00029807,4]
[423706334,1780319447000,-373.24988387,0.00029737,2]
[423706342,1780319447000,-1273.0,0.00029846,2]
[423706347,1780319447000,-770.02,0.0003,7]
[423706344,1780319447000,-1000.01,0.000299,30]
[423706351,1780319447000,-209.21103511,0.0003,30]
[423706348,1780319447000,-162.0,0.0003,14]
[423706341,1780319447000,-525.0,0.00029846,2]
[423706352,1780319447000,-1000.01,0.0003,30]
[423706346,1780319447000,-434.48,0.0003,7]
[423706333,1780319447000,-375.91144844,0.00029737,2]
[423706389,1780319447000,-246.31902124,0.00030523,2]
[423706395,1780319447000,-588.34818408,0.00030624,2]
[423706378,1780319447000,-174.305,0.000302,2]
[423706424,1780319447000,-1197.0,0.00030666,30]
[423706422,1780319447000,-559.8748258,0.00030624,2]
[423706423,1780319447000,-656.0,0.00030666,30]
[423706421,1780319447000,-235.01886292,0.00030624,2]
[423706414,1780319447000,-180.43436433,0.00030624,2]
[423706425,1780319447000,-706.0,0.00030666,30]
[423706419,1780319447000,-563.86717265,0.00030624,2]
[423706416,1780319447000,-208.31266579,0.00030624,2]
[423706418,1780319447000,-211.46682157,0.00030624,2]
[423706417,1780319447000,-194.92505296,0.00030624,2]
[423706427,1780319447000,-719.0,0.00030673,30]
[423706435,1780319447000,-1622.0,0.00030717,30]
[423706437,1780319447000,-200.0,0.0003101,2]
[423706434,1780319447000,-321.0,0.00030717,30]
[423706432,1780319447000,-1792.0,0.00030717,30]
[423706433,1780319447000,-427.0,0.00030717,30]
[423706436,1780319447000,-649.0,0.00030875,6]
[423706426,1780319447000,-515.0,0.00030673,30]
[423706429,1780319447000,-1404.0,0.00030717,30]
[423706430,1780319447000,-337.0,0.00030717,30]
[423706428,1780319447000,-1280.0,0.00030717,30]
[423706431,1780319447000,-253.0,0.00030717,30]
[423706438,1780319447000,-150.0,0.00031011,2]
[423706442,1780319447000,-222.72626553,0.00031113,2]
[423706441,1780319447000,-200.0,0.00031096,2]
[423706440,1780319447000,-152.0,0.00031051,4]
[423706385,1780319447000,-1000.01,0.000304,30]
[423706415,1780319447000,-197.7283453,0.00030624,2]
[423706420,1780319447000,-238.75088792,0.00030624,2]
[423706439,1780319447000,-171.89,0.0003105,30]
[423706403,1780319447000,-208.30044078,0.00030624,2]
[423706388,1780319447000,-1000.01,0.000305,30]
[423706384,1780319447000,-649.0,0.00030341,5]
[423706386,1780319447000,-1984.22864002,0.00030406,2]
[423706382,1780319447000,-400.15,0.000303,7]
[423706383,1780319447000,-1000.01,0.000303,30]
[423706387,1780319447000,-165.78,0.00030411,120]
[423706391,1780319447000,-207.36205746,0.00030523,2]
[423706412,1780319447000,-215.60735953,0.00030624,2]
[423706394,1780319447000,-504.30540422,0.00030624,2]
[423706392,1780319447000,-4001.64,0.00030552,7]
[423706390,1780319447000,-232.11366761,0.00030523,2]
[423706400,1780319447000,-616.42562047,0.00030624,2]
[423706398,1780319447000,-504.23660126,0.00030624,2]
[423706401,1780319447000,-579.20921434,0.00030624,2]
[423706393,1780319447000,-1000.01,0.000306,30]
[423706396,1780319447000,-485.69152109,0.00030624,2]
[423706408,1780319447000,-473.53744528,0.00030624,2]
[423706411,1780319447000,-196.73646278,0.00030624,2]
[423706410,1780319447000,-208.95974945,0.00030624,2]
[423706413,1780319447000,-193.67744707,0.00030624,2]
[423706404,1780319447000,-503.20232207,0.00030624,2]
[423706409,1780319447000,-537.1677126,0.00030624,2]
[423706407,1780319447000,-547.53143481,0.00030624,2]
[423706405,1780319447000,-480.1027839,0.00030624,2]
[423706402,1780319447000,-605.37466951,0.00030624,2]
[423706397,1780319447000,-595.83511942,0.00030624,2]
[423706399,1780319447000,-500.90207651,0.00030624,2]
[423706406,1780319447000,-532.31350636,0.00030624,2]
[423706487,1780319448000,-670.93642943,0.00031216,2]
[423706477,1780319448000,-210.58387044,0.00031216,2]
[423706481,1780319448000,-821.90082729,0.00031216,2]
[423706479,1780319448000,-171.7875653,0.00031216,2]
[423706480,1780319448000,-329.74481675,0.00031216,2]
[423706476,1780319448000,-200.38771332,0.00031216,2]
[423706478,1780319448000,-155.13659955,0.00031216,2]
[423706475,1780319448000,-667.86943534,0.00031216,2]
[423706472,1780319448000,-221.32073404,0.00031216,2]
[423706474,1780319448000,-672.31546834,0.00031216,2]
[423706482,1780319448000,-222.89992227,0.00031216,2]
[423706484,1780319448000,-807.16622602,0.00031216,2]
[423706506,1780319448000,-417.91949891,0.00031216,2]
[423706485,1780319448000,-221.54410081,0.00031216,2]
[423706488,1780319448000,-640.1370452,0.00031216,2]
[423706494,1780319448000,-207.16097966,0.00031216,2]
[423706496,1780319448000,-161.80700972,0.00031216,2]
[423706491,1780319448000,-298.57483948,0.00031216,2]
[423706489,1780319448000,-224.0694218,0.00031216,2]
[423706493,1780319448000,-709.75134181,0.00031216,2]
[423706497,1780319448000,-251.58624212,0.00031216,2]
[423706499,1780319448000,-200.10592539,0.00031216,2]
[423706500,1780319448000,-631.38326037,0.00031216,2]
[423706502,1780319448000,-194.31913229,0.00031216,2]
[423706507,1780319448000,-431.21471905,0.00031216,2]
[423706483,1780319448000,-772.27895246,0.00031216,2]
[423706486,1780319448000,-209.26591549,0.00031216,2]
[423706473,1780319448000,-171.20221971,0.00031216,2]
[423706456,1780319448000,-222.869999,0.000312,4]
[423706470,1780319448000,-197.99995944,0.00031216,2]
[423706501,1780319448000,-221.29989336,0.00031216,2]
[423706449,1780319448000,-221.72185944,0.00031113,2]
[423706443,1780319448000,-492.63804248,0.00031113,2]
[423706444,1780319448000,-464.22733521,0.00031113,2]
[423706446,1780319448000,-318.42521416,0.00031113,2]
[423706445,1780319448000,-751.82289687,0.00031113,2]
[423706448,1780319448000,-247.54103681,0.00031113,2]
[423706447,1780319448000,-294.77597645,0.00031113,2]
[423706451,1780319448000,-336.63040696,0.00031113,2]
[423706453,1780319448000,-223.19309724,0.00031113,2]
[423706450,1780319448000,-286.76892017,0.00031113,2]
[423706452,1780319448000,-414.72411492,0.00031113,2]
[423706468,1780319448000,-255.88501607,0.00031216,2]
[423706455,1780319448000,-2000.0,0.000312,2]
[423706458,1780319448000,-221.41042077,0.00031216,2]
[423706457,1780319448000,-191.031428,0.000312,4]
[423706459,1780319448000,-252.91193744,0.00031216,2]
[423706461,1780319448000,-296.19107521,0.00031216,2]
[423706460,1780319448000,-373.17217155,0.00031216,2]
[423706471,1780319448000,-794.44682589,0.00031216,2]
[423706462,1780319448000,-270.7933034,0.00031216,2]
[423706463,1780319448000,-672.40720562,0.00031216,2]
[423706464,1780319448000,-171.01848718,0.00031216,2]
[423706465,1780319448000,-784.46424545,0.00031216,2]
[423706466,1780319448000,-647.58869479,0.00031216,2]
[423706467,1780319448000,-183.08078601,0.00031216,2]
[423706454,1780319448000,-2000.0,0.00031199,4]
[423706504,1780319448000,-716.2236168,0.00031216,2]
[423706544,1780319448000,-1792.0,0.00031717,30]
[423706505,1780319448000,-393.47292555,0.00031216,2]
[423706541,1780319448000,-1404.0,0.00031717,30]
[423706546,1780319448000,-321.0,0.00031717,30]
[423706537,1780319448000,-515.0,0.00031673,30]
[423706543,1780319448000,-253.0,0.00031717,30]
[423706539,1780319448000,-400.15,0.000317,7]
[423706545,1780319448000,-427.0,0.00031717,30]
[423706564,1780319448000,-838.67053678,0.00031807,2]
[423706540,1780319448000,-1280.0,0.00031717,30]
[423706538,1780319448000,-719.0,0.00031673,30]
[423706536,1780319448000,-574.93,0.00031672,14]
[423706549,1780319448000,-150.0,0.00031759,7]
[423706550,1780319448000,-150.00000001,0.00031759,7]
[423706547,1780319448000,-1622.0,0.00031717,30]
[423706551,1780319448000,-150.00000001,0.00031759,7]
[423706559,1780319448000,-840.39433543,0.00031807,2]
[423706554,1780319448000,-200.0,0.00031797,2]
[423706553,1780319448000,-150.0,0.00031759,7]
[423706556,1780319448000,-840.50900703,0.00031807,2]
[423706560,1780319448000,-834.83679418,0.00031807,2]
[423706558,1780319448000,-993.05853236,0.00031807,2]
[423706552,1780319448000,-150.0,0.00031759,7]
[423706561,1780319448000,-1027.37603411,0.00031807,2]
[423706555,1780319448000,-698.26,0.00031806,30]
[423706557,1780319448000,-809.48586849,0.00031807,2]
[423706562,1780319448000,-965.34869057,0.00031807,2]
[423706563,1780319448000,-1008.95778252,0.00031807,2]
[423706548,1780319448000,-150.0,0.00031759,7]
[423706542,1780319448000,-337.0,0.00031717,30]
[423706503,1780319448000,-220.45543173,0.00031216,2]
[423706527,1780319448000,-2000.0,0.00031408,6]
[423706535,1780319448000,-706.0,0.00031666,30]
[423706498,1780319448000,-730.04191308,0.00031216,2]
[423706510,1780319448000,-360.86872866,0.00031216,2]
[423706509,1780319448000,-387.35489415,0.00031216,2]
[423706511,1780319448000,-416.60088156,0.00031216,2]
[423706512,1780319448000,-416.62533157,0.00031216,2]
[423706517,1780319448000,-234.34988741,0.00031216,2]
[423706515,1780319448000,-181.1463723,0.00031216,2]
[423706518,1780319448000,-222.87239707,0.00031216,2]
[423706516,1780319448000,-422.93364314,0.00031216,2]
[423706513,1780319448000,-389.85010592,0.00031216,2]
[423706514,1780319448000,-298.06794337,0.00031216,2]
[423706521,1780319448000,-746.49976774,0.00031216,2]
[423706508,1780319448000,-237.96096978,0.00031216,2]
[423706520,1780319448000,-470.03772583,0.00031216,2]
[423706519,1780319448000,-477.50177583,0.00031216,2]
[423706526,1780319448000,-990.12480529,0.00031401,2]
[423706528,1780319448000,-649.0,0.00031409,6]
[423706530,1780319448000,-2000.0,0.00031506,60]
[423706534,1780319448000,-1197.0,0.00031666,30]
[423706533,1780319448000,-656.0,0.00031666,30]
[423706531,1780319448000,-229.18,0.00031507,30]
[423706525,1780319448000,-913.9,0.00031378,15]
[423706523,1780319448000,-434.48,0.000313,7]
[423706524,1780319448000,-340.83072653,0.00031329,2]
[423706522,1780319448000,-223.44561191,0.00031216,2]
[423706532,1780319448000,-163.0,0.00031644,14]
[423706529,1780319448000,-441.14555396,0.00031421,2]
[423706611,1780319449000,-500.0,0.00032603,10]
[423706600,1780319449000,-500.0,0.00032603,10]
[423706610,1780319449000,-179.15137862,0.00032603,10]
[423706594,1780319449000,-150.0,0.00032562,2]
[423706597,1780319449000,-200.0,0.00032584,2]
[423706598,1780319449000,-500.0,0.00032603,10]
[423706587,1780319449000,-165.662855,0.0003245,7]
[423706599,1780319449000,-500.0,0.00032603,10]
[423706596,1780319449000,-385.0,0.0003258,2]
[423706595,1780319449000,-450.0,0.00032572,2]
[423706612,1780319449000,-502.83414164,0.00032603,10]
[423706605,1780319449000,-500.0,0.00032603,10]
[423706604,1780319449000,-500.0,0.00032603,10]
[423706606,1780319449000,-500.0,0.00032603,10]
[423706603,1780319449000,-500.0,0.00032603,10]
[423706609,1780319449000,-500.0,0.00032603,10]
[423706607,1780319449000,-500.0,0.00032603,10]
[423706608,1780319449000,-500.0,0.00032603,10]
[423706614,1780319449000,-496.0,0.00032603,10]
[423706613,1780319449000,-496.0,0.00032603,10]
[423706624,1780319449000,-496.0,0.00032603,10]
[423706615,1780319449000,-496.0,0.00032603,10]
[423706593,1780319449000,-385.0,0.00032541,2]
[423706601,1780319449000,-500.0,0.00032603,10]
[423706592,1780319449000,-385.0,0.00032529,2]
[423706575,1780319449000,-1447.8,0.00032,14]
[423706589,1780319449000,-2000.0,0.00032471,5]
[423706573,1780319449000,-500.0,0.00031999,120]
[423706566,1780319449000,-887.18917726,0.00031807,2]
[423706565,1780319449000,-800.1713065,0.00031807,2]
[423706574,1780319449000,-500.0,0.00031999,120]
[423706569,1780319449000,-749.95359005,0.00031841,59]
[423706567,1780319449000,-789.22907546,0.00031807,2]
[423706571,1780319449000,-770.02,0.000319,7]
[423706570,1780319449000,-749.95359005,0.00031841,59]
[423706572,1780319449000,-649.0,0.00031943,7]
[423706568,1780319449000,-895.279521,0.00031807,2]
[423706576,1780319449000,-209.21103511,0.00032,30]
[423706591,1780319449000,-649.0,0.00032477,7]
[423706616,1780319449000,-496.0,0.00032603,10]
[423706578,1780319449000,-200.0,0.00032055,2]
[423706584,1780319449000,-150.0,0.00032347,7]
[423706581,1780319449000,-4001.64,0.0003231,14]
[423706583,1780319449000,-805.0,0.00032339,10]
[423706579,1780319449000,-150.0,0.00032112,7]
[423706585,1780319449000,-2000.0,0.000324,7]
[423706580,1780319449000,-1121.9,0.0003221,5]
[423706582,1780319449000,-322.0,0.00032339,10]
[423706586,1780319449000,-2000.0,0.000324,7]
[423706588,1780319449000,-150.0,0.00032465,7]
[423706590,1780319449000,-576.57706679,0.00032472,5]
[423706577,1780319449000,-150.0,0.00032053,7]
[423706625,1780319449000,-500.0,0.00032603,10]
[423706602,1780319449000,-500.0,0.00032603,10]
[423706619,1780319449000,-496.0,0.00032603,10]
[423706651,1780319449000,-496.0,0.00032603,10]
[423706647,1780319449000,-500.0,0.00032603,10]
[423706645,1780319449000,-500.0,0.00032603,10]
[423706653,1780319449000,-500.0,0.00032603,10]
[423706652,1780319449000,-500.0,0.00032603,10]
[423706655,1780319449000,-500.0,0.00032603,10]
[423706656,1780319449000,-500.0,0.00032603,10]
[423706657,1780319449000,-408.67132594,0.00032603,10]
[423706659,1780319449000,-500.0,0.00032603,10]
[423706660,1780319449000,-500.0,0.00032603,10]
[423706658,1780319449000,-500.0,0.00032603,10]
[423706650,1780319449000,-500.0,0.00032603,10]
[423706662,1780319449000,-500.0,0.00032603,10]
[423706663,1780319449000,-873.0,0.00032603,10]
[423706670,1780319449000,-873.0,0.00032603,10]
[423706669,1780319449000,-873.0,0.00032603,10]
[423706667,1780319449000,-873.0,0.00032603,10]
[423706665,1780319449000,-873.0,0.00032603,10]
[423706666,1780319449000,-512.62058182,0.00032603,10]
[423706664,1780319449000,-500.0,0.00032603,10]
[423706668,1780319449000,-873.0,0.00032603,10]
[423706672,1780319449000,-500.0,0.00032603,10]
[423706618,1780319449000,-496.0,0.00032603,10]
[423706671,1780319449000,-873.0,0.00032603,10]
[423706661,1780319449000,-496.0,0.00032603,10]
[423706648,1780319449000,-500.0,0.00032603,10]
[423706654,1780319449000,-500.0,0.00032603,10]
[423706649,1780319449000,-500.0,0.00032603,10]
[423706617,1780319449000,-496.0,0.00032603,10]
[423706622,1780319449000,-496.0,0.00032603,10]
[423706646,1780319449000,-500.0,0.00032603,10]
[423706621,1780319449000,-496.0,0.00032603,10]
[423706620,1780319449000,-496.0,0.00032603,10]
[423706623,1780319449000,-500.0,0.00032603,10]
[423706626,1780319449000,-496.0,0.00032603,10]
[423706627,1780319449000,-500.0,0.00032603,10]
[423706628,1780319449000,-496.0,0.00032603,10]
[423706630,1780319449000,-496.0,0.00032603,10]
[423706629,1780319449000,-361.53277954,0.00032603,10]
[423706638,1780319449000,-496.0,0.00032603,10]
[423706637,1780319449000,-500.0,0.00032603,10]
[423706644,1780319449000,-500.0,0.00032603,10]
[423706631,1780319449000,-500.0,0.00032603,10]
[423706640,1780319449000,-150.0,0.00032603,10]
[423706635,1780319449000,-500.0,0.00032603,10]
[423706633,1780319449000,-500.0,0.00032603,10]
[423706632,1780319449000,-496.0,0.00032603,10]
[423706634,1780319449000,-496.0,0.00032603,10]
[423706639,1780319449000,-500.0,0.00032603,10]
[423706641,1780319449000,-150.0,0.00032603,10]
[423706642,1780319449000,-496.0,0.00032603,10]
[423706636,1780319449000,-500.0,0.00032603,10]
[423706643,1780319449000,-184.20302166,0.00032603,10]
[423706707,1780319450000,-446.0,0.00032603,10]
[423706714,1780319450000,-873.0,0.00032603,10]
[423706709,1780319450000,-446.0,0.00032603,10]
[423706711,1780319450000,-496.0,0.00032603,10]
[423706704,1780319450000,-210.60640966,0.00032603,10]
[423706708,1780319450000,-446.0,0.00032603,10]
[423706706,1780319450000,-873.0,0.00032603,10]
[423706699,1780319450000,-873.0,0.00032603,10]
[423706713,1780319450000,-446.0,0.00032603,10]
[423706700,1780319450000,-446.0,0.00032603,10]
[423706710,1780319450000,-446.0,0.00032603,10]
[423706712,1780319450000,-446.0,0.00032603,10]
[423706722,1780319450000,-497.94856175,0.00032603,10]
[423706718,1780319450000,-446.0,0.00032603,10]
[423706720,1780319450000,-873.0,0.00032603,10]
[423706719,1780319450000,-446.0,0.00032603,10]
[423706721,1780319450000,-446.0,0.00032603,10]
[423706727,1780319450000,-446.0,0.00032603,10]
[423706724,1780319450000,-873.0,0.00032603,10]
[423706725,1780319450000,-446.0,0.00032603,10]
[423706726,1780319450000,-873.0,0.00032603,10]
[423706716,1780319450000,-446.0,0.00032603,10]
[423706723,1780319450000,-446.0,0.00032603,10]
[423706701,1780319450000,-500.0,0.00032603,10]
[423706715,1780319450000,-446.0,0.00032603,10]
[423706703,1780319450000,-446.0,0.00032603,10]
[423706675,1780319450000,-873.0,0.00032603,10]
[423706694,1780319450000,-873.0,0.00032603,10]
[423706728,1780319450000,-873.0,0.00032603,10]
[423706673,1780319450000,-873.0,0.00032603,10]
[423706678,1780319450000,-873.0,0.00032603,10]
[423706679,1780319450000,-500.0,0.00032603,10]
[423706674,1780319450000,-500.0,0.00032603,10]
[423706676,1780319450000,-496.0,0.00032603,10]
[423706677,1780319450000,-500.0,0.00032603,10]
[423706680,1780319450000,-873.0,0.00032603,10]
[423706681,1780319450000,-500.0,0.00032603,10]
[423706682,1780319450000,-873.0,0.00032603,10]
[423706688,1780319450000,-873.0,0.00032603,10]
[423706685,1780319450000,-500.0,0.00032603,10]
[423706702,1780319450000,-446.0,0.00032603,10]
[423706683,1780319450000,-500.0,0.00032603,10]
[423706689,1780319450000,-162.97877955,0.00032603,10]
[423706693,1780319450000,-245.69706371,0.00032603,10]
[423706690,1780319450000,-500.0,0.00032603,10]
[423706687,1780319450000,-500.0,0.00032603,10]
[423706692,1780319450000,-496.0,0.00032603,10]
[423706691,1780319450000,-500.0,0.00032603,10]
[423706684,1780319450000,-873.0,0.00032603,10]
[423706695,1780319450000,-446.0,0.00032603,10]
[423706705,1780319450000,-446.0,0.00032603,10]
[423706696,1780319450000,-446.0,0.00032603,10]
[423706698,1780319450000,-500.0,0.00032603,10]
[423706697,1780319450000,-446.0,0.00032603,10]
[423706686,1780319450000,-873.0,0.00032603,10]
[423706729,1780319450000,-446.0,0.00032603,10]
[423706717,1780319450000,-446.0,0.00032603,10]
[423706738,1780319450000,-500.0,0.00032603,10]
[423706763,1780319450000,-500.0,0.00032603,10]
[423706774,1780319450000,-501.0,0.00032603,10]
[423706771,1780319450000,-500.0,0.00032603,10]
[423706765,1780319450000,-500.0,0.00032603,10]
[423706769,1780319450000,-338.00061309,0.00032603,10]
[423706772,1780319450000,-500.0,0.00032603,10]
[423706766,1780319450000,-500.0,0.00032603,10]
[423706770,1780319450000,-501.0,0.00032603,10]
[423706773,1780319450000,-547.86684498,0.00032603,10]
[423706767,1780319450000,-500.0,0.00032603,10]
[423706764,1780319450000,-500.0,0.00032603,10]
[423706768,1780319450000,-501.0,0.00032603,10]
[423706758,1780319450000,-501.0,0.00032603,10]
[423706776,1780319450000,-793.0,0.00032603,10]
[423706778,1780319450000,-793.0,0.00032603,10]
[423706786,1780319450000,-793.0,0.00032603,10]
[423706777,1780319450000,-793.0,0.00032603,10]
[423706779,1780319450000,-793.0,0.00032603,10]
[423706775,1780319450000,-501.0,0.00032603,10]
[423706785,1780319450000,-793.0,0.00032603,10]
[423706780,1780319450000,-793.0,0.00032603,10]
[423706781,1780319450000,-793.0,0.00032603,10]
[423706782,1780319450000,-501.0,0.00032603,10]
[423706783,1780319450000,-793.0,0.00032603,10]
[423706787,1780319450000,-793.0,0.00032603,10]
[423706737,1780319450000,-500.0,0.00032603,10]
[423706784,1780319450000,-793.0,0.00032603,10]
[423706757,1780319450000,-501.0,0.00032603,10]
[423706731,1780319450000,-460.0,0.00032603,10]
[423706759,1780319450000,-501.0,0.00032603,10]
[423706756,1780319450000,-501.0,0.00032603,10]
[423706735,1780319450000,-150.0,0.00032603,10]
[423706734,1780319450000,-500.0,0.00032603,10]
[423706732,1780319450000,-500.0,0.00032603,10]
[423706730,1780319450000,-876.85748912,0.00032603,10]
[423706733,1780319450000,-150.0,0.00032603,10]
[423706736,1780319450000,-193.97666921,0.00032603,10]
[423706741,1780319450000,-500.0,0.00032603,10]
[423706740,1780319450000,-500.0,0.00032603,10]
[423706750,1780319450000,-501.0,0.00032603,10]
[423706744,1780319450000,-500.0,0.00032603,10]
[423706747,1780319450000,-501.0,0.00032603,10]
[423706743,1780319450000,-500.0,0.00032603,10]
[423706739,1780319450000,-500.0,0.00032603,10]
[423706745,1780319450000,-534.04255896,0.00032603,10]
[423706755,1780319450000,-501.0,0.00032603,10]
[423706742,1780319450000,-416.00554112,0.00032603,10]
[423706754,1780319450000,-501.0,0.00032603,10]
[423706751,1780319450000,-501.0,0.00032603,10]
[423706760,1780319450000,-501.0,0.00032603,10]
[423706753,1780319450000,-501.0,0.00032603,10]
[423706762,1780319450000,-501.0,0.00032603,10]
[423706752,1780319450000,-501.0,0.00032603,10]
[423706749,1780319450000,-501.0,0.00032603,10]
[423706746,1780319450000,-501.0,0.00032603,10]
[423706748,1780319450000,-501.0,0.00032603,10]
[423706761,1780319450000,-501.0,0.00032603,10]
[423706830,1780319451000,-500.0,0.00032603,10]
[423706831,1780319451000,-500.0,0.00032603,10]
[423706827,1780319451000,-500.0,0.00032603,10]
[423706826,1780319451000,-1080.0,0.00032603,10]
[423706824,1780319451000,-500.0,0.00032603,10]
[423706820,1780319451000,-500.0,0.00032603,10]
[423706825,1780319451000,-500.0,0.00032603,10]
[423706818,1780319451000,-1080.0,0.00032603,10]
[423706819,1780319451000,-500.0,0.00032603,10]
[423706823,1780319451000,-1080.0,0.00032603,10]
[423706828,1780319451000,-500.0,0.00032603,10]
[423706835,1780319451000,-1080.0,0.00032603,10]
[423706829,1780319451000,-1080.0,0.00032603,10]
[423706841,1780319451000,-500.0,0.00032603,10]
[423706834,1780319451000,-500.0,0.00032603,10]
[423706833,1780319451000,-500.0,0.00032603,10]
[423706847,1780319451000,-500.0,0.00032603,10]
[423706837,1780319451000,-500.0,0.00032603,10]
[423706848,1780319451000,-500.0,0.00032603,10]
[423706838,1780319451000,-1080.0,0.00032603,10]
[423706836,1780319451000,-500.0,0.00032603,10]
[423706844,1780319451000,-500.0,0.00032603,10]
[423706843,1780319451000,-1080.0,0.00032603,10]
[423706839,1780319451000,-500.0,0.00032603,10]
[423706840,1780319451000,-1080.0,0.00032603,10]
[423706821,1780319451000,-1080.0,0.00032603,10]
[423706846,1780319451000,-1080.0,0.00032603,10]
[423706832,1780319451000,-1080.0,0.00032603,10]
[423706822,1780319451000,-500.0,0.00032603,10]
[423706803,1780319451000,-500.0,0.00032603,10]
[423706813,1780319451000,-1080.0,0.00032603,10]
[423706789,1780319451000,-793.0,0.00032603,10]
[423706793,1780319451000,-793.0,0.00032603,10]
[423706797,1780319451000,-500.0,0.00032603,10]
[423706795,1780319451000,-793.0,0.00032603,10]
[423706794,1780319451000,-520.33389924,0.00032603,10]
[423706799,1780319451000,-500.0,0.00032603,10]
[423706792,1780319451000,-793.0,0.00032603,10]
[423706788,1780319451000,-793.0,0.00032603,10]
[423706791,1780319451000,-793.0,0.00032603,10]
[423706790,1780319451000,-501.0,0.00032603,10]
[423706796,1780319451000,-793.0,0.00032603,10]
[423706798,1780319451000,-793.0,0.00032603,10]
[423706801,1780319451000,-500.0,0.00032603,10]
[423706817,1780319451000,-500.0,0.00032603,10]
[423706804,1780319451000,-500.0,0.00032603,10]
[423706800,1780319451000,-793.0,0.00032603,10]
[423706811,1780319451000,-400.0082348,0.00032603,10]
[423706842,1780319451000,-500.0,0.00032603,10]
[423706809,1780319451000,-802.86310537,0.00032603,10]
[423706810,1780319451000,-1080.0,0.00032603,10]
[423706805,1780319451000,-793.0,0.00032603,10]
[423706806,1780319451000,-500.0,0.00032603,10]
[423706808,1780319451000,-500.0,0.00032603,10]
[423706807,1780319451000,-793.0,0.00032603,10]
[423706812,1780319451000,-1080.0,0.00032603,10]
[423706815,1780319451000,-500.0,0.00032603,10]
[423706816,1780319451000,-1080.0,0.00032603,10]
[423706814,1780319451000,-1080.0,0.00032603,10]
[423706802,1780319451000,-793.0,0.00032603,10]
[423706849,1780319451000,-500.0,0.00032603,10]
[423706845,1780319451000,-500.0,0.00032603,10]
[423706852,1780319451000,-500.0,0.00032603,10]
[423706883,1780319451000,-515.0,0.00032673,30]
[423706882,1780319451000,-706.0,0.00032666,30]
[423706885,1780319451000,-1008.61080843,0.00032694,2]
[423706884,1780319451000,-719.0,0.00032673,30]
[423706889,1780319451000,-1232.85124093,0.00032694,2]
[423706892,1780319451000,-1006.40464414,0.00032694,2]